Workbook

Sheet Startgegevens
A1: Startgegevens
A3: Werktijdsfactor | B3: 1 | C3: =IF(B3="","Gegevens ontbreken","") -> 
A4: Schaal | B4: LB
A5: Trede | B5: 12 | C5: =IF(B5="","Gegevens ontbreken","") -> 
A6: Brutoloon | B6: =VLOOKUP(B4,'2026'!A:Q,B5+1,FALSE) -> 5520 | C6: Loonpeil 1 januari 2026
A7: Bruteringstoelage | B7: 0 | C7: =IF(B7="","Gegevens ontbreken","") -> 
A8: Percentage inhouding | B8: =IF(AND(B4>0,B4<9),40,50) -> 50
Q9: =DATE(S17,R17,Q17) -> 1969-01-16
A10: 1. a) Bent u geboren voor 1-10-1958?
A13: 1. b) Genoot u per 30-9-2014 bapo?
A16: 2. Bent u geboren voor | B16: =Q9 -> 1969-01-16
Q17: =DAY(TODAY()) -> 16 | R17: =MONTH(TODAY()) -> 1 | S17: =YEAR(TODAY())-57 -> 1969
A19: 3. a) Bent u geboren voor 1-10-1962?
A22: 3. b) Genoot u per 30-9-2014 bapo?
A25: ="U heeft recht op "&40*B3&" uur duurzame inzetbaarheid." -> U heeft recht op 40 uur duurzame inzetbaarheid.

Sheet Nieuwe regeling (hidden)
A1: Nieuwe regeling
A5: Nieuwe regeling
A6: Basisbudget | C6: =ROUND(40*Startgegevens!$B$3,0) -> 40 | D6: uur
A7: Bijzonder budget | C7: =ROUND(130*Startgegevens!$B$3,0) -> 130 | D7: uur
A8: Totaal budget | C8: =SUM(C6:C7) -> 170 | D8: uur
A9: Opgebouwd budget spaarverlof | C9: 119
A10: Gewenst aantal uren op te nemen spaarverlof | C10: 0 | D10: ="tussen 0 en "&MIN(C9,340*Startgegevens!$B$3) -> tussen 0 en 119
A11: Gewenst aantal uren regulier verlof | C11: 0 | D11: ="tussen 0 en "&C8 -> tussen 0 en 170 | N11: ="U heeft jaarlijks recht op "&C8&" uur aan verlof. Dit is opgebouwd uit een basisbudget van "&C6&" uur en een bijzonder budget van "&C7 -> U heeft jaarlijks recht op 170 uur aan verlof. Dit is opgebouwd uit een basisbudget van 40 uur en een bijzonder budget van 130
N12: uur. Wanneer u een deel van dit budget in wilt zetten voor verlof, betaald u over het bijzonder budget een eigen bijdrage. Bij opname van verlof moet eerst het bijzonder budget worden ingezet.
A13: Resultaat | N13: ="Vult u in blauwe vak een gewenst aantal uren verlof in. Dit moet liggen tussen de 0 en de "&C8&" uur." -> Vult u in blauwe vak een gewenst aantal uren verlof in. Dit moet liggen tussen de 0 en de 170 uur.
A14: Aantal uur verlof zonder eigen bijdrage | C14: =ROUND(IF(C11="","",IF(C11>=C7,C11-C7,0))+IF(C11>0,C10/C8*C6,0),0) -> 0 | D14: uur
A15: Aantal uur mét eigen bijdrage (bijzonder budget) | C15: =ROUND(IF(C11="","",IF(C11>=C7,C7,C11)+IF(C10>0,C10/C8*C7,0)),0) -> 0 | D15: uur
A16: Beschikbaar voor duurzame inzetbaarheid | C16: =IF(C11="","",C6-C14+C7-C15+C10) -> 170 | D16: uur
A18: Eigen bijdrage per maand | B18: =IF(C11="","Vul gewenst aantal uren verlof in",((C15/1659)*(Startgegevens!$B$6+Startgegevens!$B$7)))*Startgegevens!B8/100 -> 0 | C18: =Startgegevens!C6 -> Loonpeil 1 januari 2026
A21: Toelichting
A22: =N11&N12&N13 -> U heeft jaarlijks recht op 170 uur aan verlof. Dit is opgebouwd uit een basisbudget van 40 uur en een bijzonder budget van 130 uur. Wanneer u een deel van dit budget in wilt zetten voor verlof, betaald u over het bijzonder budget een eigen bijdrage. Bij opname van verlof moet eerst het bijzonder budget worden ingezet. Vult u in blauwe vak een gewenst aantal uren verlof in. Dit moet liggen tussen de 0 en de 170 uur.
A24: Ondertekening bevoegd gezag en aanvrager
A26: Naam medewerker
A27: Geboortedatum
A28: Ingangsdatum voor salarisadministratie
A30: Ondertekening medewerker | E30: Ondetekening bevoegd gezag
A31: Datum | E31: Datum
A32: Handtekening | E32: Handtekening

Sheet 2026 (hidden)
B1: 1 | C1: 2 | D1: 3 | E1: 4 | F1: 5 | G1: 6 | H1: 7 | I1: 8 | J1: 9 | K1: 10 | L1: 11 | M1: 12 | N1: 13 | O1: 14 | P1: 15 | Q1: 16 | R1: a | S1: b | T1: c | U1: d | W1: Oktobertoelage | Y1: Arbeidsmarkttoelage | Z1: Oktobertoelage
A2: LB | B2: 3622 | C2: 3710 | D2: 3821 | E2: 3933 | F2: 4046 | G2: 4185 | H2: 4348 | I2: 4533 | J2: 4742 | K2: 4975 | L2: 5234 | M2: 5520 | V2: LB12 | W2: 1640
A3: LC | B3: 3644 | C3: 3817 | D3: 4015 | E3: 4213 | F3: 4409 | G3: 4629 | H3: 4873 | I3: 5138 | J3: 5427 | K3: 5740 | L3: 6074 | M3: 6432 | V3: LC12 | W3: 1640
A4: LD | B4: 3659 | C4: 3874 | D4: 4125 | E4: 4376 | F4: 4627 | G4: 4910 | H4: 5225 | I4: 5577 | J4: 5960 | K4: 6378 | L4: 6828 | M4: 7313 | V4: LD12 | W4: 1640
A5: LE | B5: 4695 | C5: 4870 | D5: 5025 | E5: 5341 | F5: 5691 | G5: 6011 | H5: 6329 | I5: 6649 | J5: 6969 | K5: 7287 | L5: 7605 | M5: 8065 | V5: LE12 | W5: 1640
A6: D12 | B6: 3659 | C6: 3874 | D6: 4125 | E6: 4376 | F6: 4627 | G6: 4910 | H6: 5225 | I6: 5577 | J6: 5960 | K6: 6378 | L6: 6828 | M6: 7313
A7: D13 | B7: 5691 | C7: 5889 | D7: 6088 | E7: 6285 | F7: 6483 | G7: 6682 | H7: 6879 | I7: 7076 | J7: 7274 | K7: 7471 | L7: 7670 | M7: 7867 | N7: 8065 | V7: D1212 | W7: 1640 | X7: D12 | Y7: =2400*1.1 -> 2640
A8: D14 | B8: 6517 | C8: 6681 | D8: 7004 | E8: 7209 | F8: 7416 | G8: 7621 | H8: 7828 | I8: 8036 | J8: 8253 | K8: 8478 | L8: 8708 | V8: D1313 | W8: 1640 | X8: D13 | Y8: =1200*1.1 -> 1320
A9: D15 | B9: 6841 | C9: 7004 | D9: 7209 | E9: 7621 | F9: 7828 | G9: 8036 | H9: 8253 | I9: 8478 | J9: 8708 | K9: 8984 | L9: 9270 | M9: 9562 | V9: D1411 | W9: 1640
A10: A11 | B10: 3644 | C10: 3817 | D10: 4015 | E10: 4213 | F10: 4409 | G10: 4629 | H10: 4873 | I10: 5138 | J10: 5427 | K10: 5740 | L10: 6074 | M10: 6432 | V10: D1512 | W10: 1640
A11: A12 | B11: 3659 | C11: 3874 | D11: 4125 | E11: 4376 | F11: 4627 | G11: 4910 | H11: 5225 | I11: 5577 | J11: 5960 | K11: 6378 | L11: 6828 | M11: 7313
A12: A13 | B12: 5691 | C12: 5889 | D12: 6088 | E12: 6285 | F12: 6483 | G12: 6682 | H12: 6879 | I12: 7076 | J12: 7274 | K12: 7471 | L12: 7670 | M12: 7867 | N12: 8065 | V12: A1013 | W12: 1640 | X12: A10 | Y12: =1600*1.1 -> 1760
A13: 1 | B13: 2559.54 | C13: 2559.54 | D13: 2559.54 | E13: 2580 | F13: 2634 | G13: 2689 | H13: 2743 | V13: A1116 | W13: 1640 | X13: A11 | Y13: =1600*1.1 -> 1760
A14: 2 | B14: 2559.54 | C14: 2559.54 | D14: 2580 | E14: 2641 | F14: 2702 | G14: 2764 | H14: 2825 | I14: 2886 | V14: A1212 | W14: 1640 | X14: A12 | Y14: =800*1.1 -> 880
A15: 3 | B15: 2559.54 | C15: 2574 | D15: 2651 | E15: 2729 | F15: 2806 | G15: 2884 | H15: 2961 | I15: 3039 | J15: 3116 | V15: A1313 | W15: 1640
A16: 4 | B16: 2559.54 | C16: 2598 | D16: 2673 | E16: 2748 | F16: 2822 | G16: 2897 | H16: 2971 | I16: 3046 | J16: 3121 | K16: 3195 | L16: 3270
A17: 5 | B17: 2559.54 | C17: 2637 | D17: 2723 | E17: 2810 | F17: 2896 | G17: 2982 | H17: 3068 | I17: 3154 | J17: 3240 | K17: 3326 | L17: 3412 | V17: 910 | W17: 1640
A18: 6 | B18: 2672 | C18: 2766 | D18: 2859 | E18: 2953 | F18: 3047 | G18: 3141 | H18: 3235 | I18: 3329 | J18: 3422 | K18: 3516 | L18: 3610 | V18: 1012 | W18: 1640
A19: 7 | B19: 2798 | C19: 2902 | D19: 3005 | E19: 3109 | F19: 3212 | G19: 3316 | H19: 3419 | I19: 3523 | J19: 3626 | K19: 3730 | L19: 3833 | M19: 3937 | V19: 1112 | W19: 1640
A20: 8 | B20: 3022 | C20: 3152 | D20: 3281 | E20: 3411 | F20: 3541 | G20: 3671 | H20: 3800 | I20: 3930 | J20: 4060 | K20: 4190 | L20: 4320 | M20: 4449 | V20: 1212 | W20: 1640
A21: 9 | B21: 3326 | C21: 3496 | D21: 3835 | E21: 4030 | F21: 4201 | G21: 4371 | H21: 4534 | I21: 4695 | J21: 4870 | K21: 5025 | V21: 1313 | W21: 1640
A22: 10 | B22: 3326 | C22: 3659 | D22: 3835 | E22: 4030 | F22: 4201 | G22: 4371 | H22: 4534 | I22: 4695 | J22: 4870 | K22: 5025 | L22: 5185 | M22: 5341 | N22: 5520 | V22: 1411 | W22: 1640
A23: 11 | B23: 3644 | C23: 3817 | D23: 4015 | E23: 4213 | F23: 4409 | G23: 4629 | H23: 4873 | I23: 5138 | J23: 5427 | K23: 5740 | L23: 6074 | M23: 6432 | V23: 1512 | W23: 1640
A24: 12 | B24: 3659 | C24: 3874 | D24: 4125 | E24: 4376 | F24: 4627 | G24: 4910 | H24: 5225 | I24: 5577 | J24: 5960 | K24: 6378 | L24: 6828 | M24: 7313 | V24: 1612 | W24: 1640
A25: 13 | B25: 5691 | C25: 5889 | D25: 6088 | E25: 6285 | F25: 6483 | G25: 6682 | H25: 6879 | I25: 7076 | J25: 7274 | K25: 7471 | L25: 7670 | M25: 7867 | N25: 8065 | V25: 1712 | W25: 1640
A26: 14 | B26: 6517 | C26: 6681 | D26: 7004 | E26: 7209 | F26: 7416 | G26: 7621 | H26: 7828 | I26: 8036 | J26: 8253 | K26: 8478 | L26: 8708
A27: 15 | B27: 6841 | C27: 7004 | D27: 7209 | E27: 7621 | F27: 7828 | G27: 8036 | H27: 8253 | I27: 8478 | J27: 8708 | K27: 8984 | L27: 9270 | M27: 9562
A28: 16 | B28: 7416 | C28: 7621 | D28: 7828 | E28: 8253 | F28: 8478 | G28: 8708 | H28: 8984 | I28: 9270 | J28: 9562 | K28: 9868 | L28: 10179 | M28: 10503
A29: 17 | B29: 8036 | C29: 8253 | D29: 8478 | E29: 8984 | F29: 9270 | G29: 9562 | H29: 9868 | I29: 10179 | J29: 10503 | K29: 10839 | L29: 11182 | M29: 11537
A30: LIO1 | B30: =3622/2 -> 1811
A31: LIO2 | B31: =3644/2 -> 1822

Sheet Overgangsregeling 1 (hidden)
A1: Overgangsregeling 1
A5: Nieuwe regeling
A6: Basisbudget | C6: =ROUND(40*Startgegevens!$B$3,0) -> 40 | D6: uur
A7: Bijzonder budget | C7: =ROUND(130*Startgegevens!$B$3,0) -> 130 | D7: uur
A8: Totaal budget | C8: =SUM(C6:C7) -> 170 | D8: uur
A9: Gewenst aantal uren verlof | C9: 0 | D9: ="tussen 0 en "&C8 -> tussen 0 en 170 | N9: ="U heeft jaarlijks recht op "&C8&" uur aan verlof. Dit is opgebouwd uit een basisbudget van "&C6&" uur en een bijzonder budget van "&C7 -> U heeft jaarlijks recht op 170 uur aan verlof. Dit is opgebouwd uit een basisbudget van 40 uur en een bijzonder budget van 130
N10: uur. Wanneer u een deel van dit budget in wilt zetten voor verlof, betaald u over een vaste verhouding van deze uren een eigen bijdrage.
A11: Resultaat | N11: ="Vult u in blauwe vak een gewenst aantal uren verlof in. Dit moet liggen tussen de 0 en de "&C8&" uur. " -> Vult u in blauwe vak een gewenst aantal uren verlof in. Dit moet liggen tussen de 0 en de 170 uur.
A12: Aantal uur verlof zonder eigen bijdrage | C12: =IF(C9="","",C9*(40/170)) -> 0 | D12: uur | N12: ="Een hoger aantal uur verlof leidt tot een hogere eigen bijdrage en minder resterende uren voor duurzame inzetbaarheid. " -> Een hoger aantal uur verlof leidt tot een hogere eigen bijdrage en minder resterende uren voor duurzame inzetbaarheid.
A13: Aantal uur mét eigen bijdrage (bijzonder budget) | C13: =IF(C9="","",C9*(130/170)) -> 0 | D13: uur
A14: Beschikbaar voor duurzame inzetbaarheid | C14: =IF(C9="","",C6-C12+C7-C13) -> 170 | D14: uur
A16: Eigen bijdrage per maand | B16: =IF(C9="","Vul gewenst aantal uren verlof in",(C13/1659)*Startgegevens!$B$3*(Startgegevens!$B$6+Startgegevens!$B$7)) -> 0 | C16: =Startgegevens!C6 -> Loonpeil 1 januari 2026
A19: Toelichting
A20: =N9&N10&N11&N12 -> U heeft jaarlijks recht op 170 uur aan verlof. Dit is opgebouwd uit een basisbudget van 40 uur en een bijzonder budget van 130 uur. Wanneer u een deel van dit budget in wilt zetten voor verlof, betaald u over een vaste verhouding van deze uren een eigen bijdrage. Vult u in blauwe vak een gewenst aantal uren verlof in. Dit moet liggen tussen de 0 en de 170 uur. Een hoger aantal uur verlof leidt tot een hogere eigen bijdrage en minder resterende uren voor duurzame inzetbaarheid.
A22: Ondertekening bevoegd gezag en aanvrager
A24: Naam medewerker
A25: Geboortedatum
A26: Ingangsdatum voor salarisadministratie
A28: Ondertekening medewerker | E28: Ondetekening bevoegd gezag
A29: Datum | E29: Datum
A30: Handtekening | E30: Handtekening

Sheet Overgangsregeling 2 (hidden)
A1: Overgangsregeling 2
A5: Overgangsregeling 2
A6: Basisbudget | C6: =ROUND(40*Startgegevens!$B$3,0) -> 40 | D6: uur | N6: ="U heeft jaarlijks recht op "&C9&" uur aan duurzame inzetbaarheid. Dit is opgebouwd uit een basisbudget van "&C6&" uur, een bijzonder budget van "&C7&" uur en een overgangsbudget van "&C8&" uur. " -> U heeft jaarlijks recht op 340 uur aan duurzame inzetbaarheid. Dit is opgebouwd uit een basisbudget van 40 uur, een bijzonder budget van 130 uur en een overgangsbudget van 170 uur.
A7: Bijzonder budget | C7: =ROUND(130*Startgegevens!$B$3,0) -> 130 | D7: uur | N7: ="Wanneer u een deel van dit budget in wilt zetten voor verlof, betaald u over het bijzonder budget en het overgangsbudget een eigen bijdrage. Het overgangsbudget kan enkel ingezet worden voor verlof. " -> Wanneer u een deel van dit budget in wilt zetten voor verlof, betaald u over het bijzonder budget en het overgangsbudget een eigen bijdrage. Het overgangsbudget kan enkel ingezet worden voor verlof.
A8: Overgangsbudget | C8: =ROUND(170*Startgegevens!$B$3,0) -> 170 | D8: uur | N8: ="Vult u in het eerste blauwe vak uw gewenst aantal uren verlof in. Dit moet liggen tussen de 0 en de "&C9&" uur. In het tweede blauwe vak moet u een keuze maken hoeveel uur van dit verlof u wilt putten uit het overgangsbudget. " -> Vult u in het eerste blauwe vak uw gewenst aantal uren verlof in. Dit moet liggen tussen de 0 en de 340 uur. In het tweede blauwe vak moet u een keuze maken hoeveel uur van dit verlof u wilt putten uit het overgangsbudget.
A9: Totaal budget | C9: =SUM(C6:C8) -> 340 | D9: uur | N9: ="Een laag gebruik van het overgangsbudget zorgt voor een lage eigen bijdrage en een laag restant aan uren voor duurzame inzetbaarheid. " -> Een laag gebruik van het overgangsbudget zorgt voor een lage eigen bijdrage en een laag restant aan uren voor duurzame inzetbaarheid.
A10: Gewenst aantal uur verlof | C10: 0 | D10: ="tussen 0 en "&C9 -> tussen 0 en 340 | N10: ="Een hoog gebruik van het overgangsbudget zorgt voor een hoge eigen bijdrage, maar ook een hoog restant aan uren voor duurzame inzetbaarheid. " -> Een hoog gebruik van het overgangsbudget zorgt voor een hoge eigen bijdrage, maar ook een hoog restant aan uren voor duurzame inzetbaarheid.
A11: Waarvan overgangsbudget (eigen bijdrage) | D11: =IF(C10="","",("tussen "&IF(C10>C8,C10-C8,0)&" en "&IF(C10<C8,C10,C8))) -> tussen 0 en 0 | N11: ="Over de uren verlof die niet uit het overgangsbudget komen wordt een vaste verhouding geput uit het bijzonder budget dus betaald u over een vaste verhouding een eigen bijdrage. " -> Over de uren verlof die niet uit het overgangsbudget komen wordt een vaste verhouding geput uit het bijzonder budget dus betaald u over een vaste verhouding een eigen bijdrage.
A13: Resultaat
A14: Aantal uur verlof zonder eigen bijdrage | C14: =IF(C10="","",IF(C11="","",(IF($C$10-$C$11>0,($C$10-$C$11)*(40/170),0)))) ->  | D14: uur
A15: Aantal uur verlof mét eigen bijdrage (bijzonder budget) | C15: =IF(C10="","",IF(C11="","",(IF($C$10-$C$11>0,($C$10-$C$11)*(130/170),0)))) ->  | D15: uur
A16: Aantal uur verlof mét eigen bijdrage (overgangsbudget) | C16: =IF(C10="","",IF(C11="","",(C11))) ->  | D16: uur | F16: =C16+C15 -> 
A17: Beschikbaar voor duurzame inzetbaarheid | C17: =IF(C10="","",IF(C11="","",(C6-C14+C7-C15))) ->  | D17: uur
A19: Eigen bijdrage per maand | B19: =IF(C10="","Vul gewenst aantal uur verlof in",IF(C11="","Vul gewenst aantal uren overgangsbudget in",(((C16+C15)/1659)*Startgegevens!$B$3*(Startgegevens!$B$6+Startgegevens!$B$7)))) -> Vul gewenst aantal uren overgangsbudget in | C19: =Startgegevens!C6 -> Loonpeil 1 januari 2026
A21: Toelichting
A22: =N6&N7&N8&N9&N10&N11 -> U heeft jaarlijks recht op 340 uur aan duurzame inzetbaarheid. Dit is opgebouwd uit een basisbudget van 40 uur, een bijzonder budget van 130 uur en een overgangsbudget van 170 uur. Wanneer u een deel van dit budget in wilt zetten voor verlof, betaald u over het bijzonder budget en het overgangsbudget een eigen bijdrage. Het overgangsbudget kan enkel ingezet worden voor verlof. Vult u in het eerste blauwe vak uw gewenst aantal uren verlof in. Dit moet liggen tussen de 0 en de 340 uur. In het tweede blauwe vak moet u een keuze maken hoeveel uur van dit verlof u wilt putten uit het overgangsbudget. Een laag gebruik van het overgangsbudget zorgt voor een lage eigen bijdrage en een laag restant aan uren voor duurzame inzetbaarheid. Een hoog gebruik van het overgangsbudget zorgt voor een hoge eigen bijdrage, maar ook een hoog restant aan uren voor duurzame inzetbaarheid. Over de uren verlof die niet uit het overgangsbudget komen wordt een vaste verhouding geput uit het bijzonder budget dus betaald u over een vaste verhouding een eigen bijdrage.
A24: Ondertekening bevoegd gezag en aanvrager
A26: Naam medewerker
A27: Geboortedatum
A28: Ingangsdatum voor salarisadministratie
A30: Ondertekening medewerker | E30: Ondetekening bevoegd gezag
A31: Datum | E31: Datum
A32: Handtekening | E32: Handtekening
